fUSD/lending_fUSD_20240815
["ID","MTS","AMOUNT","RATE_DAILY","PERIOD"]
[334986921,1723711869331,-532.84760612,0.00023921,7]
[334986922,1723711869341,-150.0,0.00023921,7]
[334986923,1723711869351,-566.62680821,0.00023921,7]
[334986924,1723711869361,-500.0,0.00023921,7]
[334986925,1723711869371,-292.68690083,0.00023921,7]
[334986926,1723711869380,-500.0,0.00023921,7]
[334986927,1723711869390,-500.0,0.00023921,7]
[334986928,1723711869399,-538.39,0.00023921,7]
[334986929,1723711869408,-621.28,0.00023921,7]
[334986930,1723711869417,-500.0,0.00023921,7]
[334986931,1723711869427,-500.0,0.00023921,7]
[334986932,1723711869437,-500.0,0.00023921,7]
[334986933,1723711869446,-500.0,0.00023921,7]
[334986934,1723711869456,-500.0,0.00023921,7]
[334986935,1723711869465,-500.0,0.00023921,7]
[334986936,1723711869475,-598.17113596,0.00023921,7]
[334986937,1723711869484,-500.0,0.00023921,7]
[334986938,1723711869494,-500.0,0.00023921,7]
[334986939,1723711869502,-573.48,0.00023921,7]
[334986940,1723711869511,-500.0,0.00023921,7]
[334986941,1723711869520,-621.75,0.00023921,7]
[334986942,1723711869530,-617.12,0.00023921,7]
[334986943,1723711869539,-500.0,0.00023921,7]
[334986944,1723711869548,-500.0,0.00023921,7]
[334986945,1723711869558,-500.0,0.00023921,7]
[334986946,1723711869567,-500.0,0.00023921,7]
[334986947,1723711869577,-500.0,0.00023921,7]
[334986948,1723711869587,-500.0,0.00023921,7]
[334986949,1723711869597,-176.30631274,0.00023921,7]
[334986950,1723711869606,-500.0,0.00023921,7]
[334986951,1723711869617,-500.0,0.00023921,7]
[334986952,1723711869626,-500.0,0.00023921,7]
[334986953,1723711869637,-500.0,0.00023921,7]
[334986954,1723711869646,-500.0,0.00023921,7]
[334986955,1723711869656,-500.0,0.00023921,7]
[334986956,1723711869665,-500.0,0.00023921,7]
[334986957,1723711869674,-500.0,0.00023921,7]
[334986958,1723711869683,-500.0,0.00023921,7]
[334986959,1723711869693,-500.0,0.00023921,7]
[334986960,1723711869703,-500.0,0.00023921,7]
[334986961,1723711869713,-353.31949651,0.00023921,7]
[334986962,1723711869723,-598.88789692,0.00023921,7]
[334986963,1723711869732,-500.0,0.00023921,7]
[334986964,1723711869742,-500.0,0.00023921,7]
[334986965,1723711869752,-500.0,0.00023921,7]
[334986966,1723711869762,-556.16333443,0.00023921,7]
[334986967,1723711869771,-386.29720356,0.00023921,7]
[334986968,1723711869780,-500.0,0.00023921,7]
[334986969,1723711869790,-500.0,0.00023921,7]
[334986970,1723711869800,-500.0,0.00023921,7]
[334986971,1723711869809,-500.0,0.00023921,7]
[334986972,1723711869818,-500.0,0.00023921,7]
[334986973,1723711869827,-500.0,0.00023921,7]
[334986974,1723711869836,-500.0,0.00023921,7]
[334986976,1723711869846,-500.0,0.00023921,7]
[334986977,1723711869856,-500.0,0.00023921,7]
[334986978,1723711869866,-500.0,0.00023921,7]
[334986979,1723711869877,-406.87104419,0.00023921,7]
[334986980,1723711869886,-224.60576731,0.00023921,7]
[334986981,1723711869896,-500.0,0.00023921,7]
[334986982,1723711869906,-500.0,0.00023921,7]
[334986983,1723711869916,-512.18,0.00023921,7]
[334986984,1723711869926,-500.0,0.00023921,7]
[334986985,1723711869935,-500.0,0.00023921,7]
[334986986,1723711869945,-161.47706225,0.00023921,7]
[334986987,1723711869954,-500.0,0.00023921,7]
[334986988,1723711869966,-325.97657699,0.00023921,7]
[334986989,1723711869976,-500.0,0.00023921,7]
[334986990,1723711869985,-500.0,0.00023921,7]
[334986991,1723711869995,-500.0,0.00023921,7]
[334986992,1723711870004,-500.0,0.00023921,7]
[334986993,1723711870015,-500.0,0.00023921,7]
[334986994,1723711870025,-528.33863402,0.00023921,7]
[334986995,1723711870034,-500.0,0.00023921,7]
[334986996,1723711870045,-500.0,0.00023921,7]
[334986997,1723711870056,-500.0,0.00023921,7]
[334986998,1723711870066,-500.0,0.00023921,7]
[334986999,1723711870076,-500.0,0.00023921,7]
[334987000,1723711870085,-500.0,0.00023921,7]
[334987001,1723711870095,-500.0,0.00023921,7]
[334987002,1723711870105,-500.0,0.00023921,7]
[334987003,1723711870114,-602.77,0.00023921,7]
[334987004,1723711870123,-500.0,0.00023921,7]
[334987005,1723711870132,-500.0,0.00023921,7]
[334987006,1723711870142,-519.629626,0.00023921,7]
[334987007,1723711870151,-500.0,0.00023921,7]
[334987008,1723711870161,-597.59569406,0.00023921,7]
[334987009,1723711870170,-500.0,0.00023921,7]
[334987010,1723711870181,-500.0,0.00023921,7]
[334987011,1723711870190,-487.22004634,0.00023921,7]
[334987012,1723711870200,-500.0,0.00023921,7]
[334987013,1723711870209,-500.0,0.00023921,7]
[334987014,1723711870219,-500.0,0.00023921,7]
[334987015,1723711870229,-500.0,0.00023921,7]
[334987016,1723711870238,-500.0,0.00023921,2]
[334987017,1723711870248,-500.0,0.00023921,2]
[334987018,1723711870258,-269.72372316,0.00023921,7]
[334987019,1723711870267,-500.0,0.00023921,7]
[334987020,1723711870277,-500.0,0.00023921,7]
[334987021,1723711870287,-500.0,0.00023921,7]
[334987022,1723711870296,-500.0,0.00023921,7]
[334987023,1723711870305,-187.76900834,0.00023921,7]
[334987024,1723711870315,-957.44,0.00023921,7]
[334987025,1723711870324,-500.0,0.00023921,7]
[334987026,1723711870334,-957.44,0.00023921,7]
[334987027,1723711870343,-548.24552301,0.00023921,7]
[334987028,1723711870354,-500.0,0.00023921,7]
[334987029,1723711870475,-500.0,0.00023921,7]
[334987030,1723711870486,-500.0,0.00023921,7]
[334987031,1723711870495,-301.44705189,0.00023921,7]
[334987032,1723711870505,-500.0,0.00023921,7]
[334987033,1723711870514,-614.00618953,0.00023921,7]
[334987034,1723711870524,-500.0,0.00023921,7]
[334987035,1723711870534,-500.0,0.00023921,7]
[334987036,1723711870544,-186.68351577,0.00023921,7]
[334987037,1723711870554,-247.74046305,0.00023921,7]
[334987038,1723711870564,-500.0,0.00023921,7]
[334987039,1723711870574,-581.26255193,0.00023921,7]
[334987040,1723711870583,-575.24157773,0.00023921,7]
[334987041,1723711870591,-536.24817408,0.00023921,7]
[334987042,1723711870601,-553.86587684,0.00023921,7]
[334987043,1723711870610,-500.0,0.00023921,7]
[334987044,1723711870621,-500.0,0.00023921,7]
[334987045,1723711870630,-500.0,0.00023921,7]
[334987046,1723711870640,-500.0,0.00023921,7]
[334987047,1723711870650,-423.461878,0.00023921,7]
[334987048,1723711870660,-500.70013977,0.00023921,7]
[334987049,1723711870670,-509.54,0.00023921,7]
[334987050,1723711870680,-477.40823932,0.00023921,7]
[334987051,1723711870690,-500.0,0.00023921,7]
[334987052,1723711870700,-500.0,0.00023921,7]
[334987053,1723711870710,-500.0,0.00023921,7]
[334987054,1723711870720,-500.0,0.00023921,7]
[334987055,1723711870729,-500.0,0.00023921,7]
[334987056,1723711870739,-293.27257771,0.00023921,7]
[334987057,1723711870750,-500.0,0.00023921,7]
[334987058,1723711870760,-500.0,0.00023921,7]
[334987059,1723711870770,-500.0,0.00023921,7]
[334987060,1723711870779,-500.0,0.00023921,7]
[334987061,1723711870790,-466.89475093,0.00023921,7]
[334987062,1723711870800,-500.0,0.00023921,7]
[334987063,1723711870809,-500.0,0.00023921,7]
[334987064,1723711870819,-500.0,0.00023921,7]
[334987065,1723711870828,-500.0,0.00023921,7]
[334987066,1723711870838,-527.85526621,0.00023921,7]
[334987067,1723711870848,-504.37,0.00023921,7]
[334987068,1723711870858,-500.0,0.00023921,7]
[334987069,1723711870869,-500.0,0.00023921,7]
[334987070,1723711870879,-500.0,0.00023921,7]
[334987071,1723711870890,-500.0,0.00023921,7]
[334987072,1723711870900,-500.0,0.00023921,7]
[334987073,1723711870910,-368.0583385,0.00023921,7]
[334987074,1723711870920,-500.0,0.00023921,7]
[334987075,1723711870929,-500.0,0.00023921,7]
[334987076,1723711870939,-500.0,0.00023921,7]
[334987077,1723711870949,-432.73668462,0.00023921,7]
[334987078,1723711870960,-500.0,0.00023921,7]
[334987079,1723711870974,-500.0,0.00023921,7]
[334987080,1723711870984,-506.33627721,0.00023921,7]
[334987081,1723711870994,-500.0,0.00023921,7]
[334987082,1723711871003,-510.31751762,0.00023921,7]
[334987083,1723711871014,-500.0,0.00023921,7]
[334987084,1723711871024,-500.0,0.00023921,7]
[334987085,1723711871034,-500.0,0.00023921,7]
[334987086,1723711871045,-500.0,0.00023921,7]
[334987087,1723711871054,-500.0,0.00023921,7]
[334987088,1723711871063,-500.0,0.00023921,7]
[334987089,1723711871073,-551.52,0.00023921,7]
[334987090,1723711871083,-500.0,0.00023921,7]
[334987091,1723711871092,-539.82,0.00023921,7]
[334987092,1723711871101,-500.0,0.00023922,7]
[334987093,1723711871112,-500.0,0.00023922,7]
[334987094,1723711871121,-500.0,0.00023922,7]
[334987095,1723711871131,-516.99810267,0.00023922,7]
[334987096,1723711871140,-500.0,0.00023922,7]
[334987097,1723711871151,-881.8,0.00023922,7]
[334987098,1723711871161,-500.0,0.00023922,7]
[334987099,1723711871170,-621.28,0.00023922,7]
[334987100,1723711871180,-500.0,0.00023922,7]
[334987101,1723711871190,-617.12,0.00023922,7]
[334987102,1723711871205,-500.0,0.00023922,7]
[334987103,1723711871216,-500.0,0.00023922,7]
[334987104,1723711871225,-500.0,0.00023922,7]
[334987105,1723711871235,-500.0,0.00023922,7]
[334987106,1723711871245,-500.0,0.00023922,7]
[334987107,1723711871254,-410.84126516,0.00023922,7]
[334987108,1723711871264,-500.0,0.00023922,7]
[334987109,1723711871274,-500.0,0.00023922,7]
[334987110,1723711871284,-500.0,0.00023922,7]
[334987111,1723711871293,-500.0,0.00023922,7]
[334987112,1723711871303,-634.82062851,0.00023922,7]
[334987113,1723711871312,-500.0,0.00023922,7]
[334987114,1723711871323,-500.0,0.00023922,7]
[334987115,1723711871333,-586.4463297,0.00023922,7]
[334987116,1723711871343,-500.0,0.00023922,7]
[334987117,1723711871353,-500.0,0.00023922,7]
[334987118,1723711871362,-500.0,0.00023922,7]
[334987119,1723711871373,-500.0,0.00023922,7]
[334987120,1723711871383,-500.0,0.00023922,7]
[334987121,1723711871392,-524.59729429,0.00023922,7]
[334987122,1723711871403,-500.0,0.00023922,7]
[334987123,1723711871413,-500.0,0.00023922,7]
[334987124,1723711871423,-500.0,0.00023922,7]
[334987125,1723711871433,-509.87997997,0.00023922,7]
[334987126,1723711871443,-500.0,0.00023922,7]
[334987127,1723711871453,-500.0,0.00023922,7]
[334987128,1723711871462,-500.0,0.00023922,7]
[334987129,1723711871472,-610.52941482,0.00023922,7]
[334987130,1723711871483,-165.01592927,0.00023922,7]
[334987131,1723711871492,-500.0,0.00023922,7]
[334987132,1723711871501,-500.0,0.00023922,7]
[334987133,1723711871511,-284.30333341,0.00023922,7]
[334987134,1723711871520,-500.0,0.00023922,7]
[334987135,1723711871530,-167.05773547,0.00023922,7]
[334987136,1723711871541,-500.0,0.00023922,7]
[334987137,1723711871553,-480.60460023,0.00023922,7]
[334987138,1723711871564,-500.0,0.00023922,7]
[334987139,1723711871574,-500.0,0.00023922,7]
[334987140,1723711871584,-500.0,0.00023922,2]
[334987141,1723711871594,-500.0,0.00023922,7]
[334987142,1723711871604,-500.0,0.00023922,7]
[334987143,1723711871614,-957.44,0.00023922,7]
[334987144,1723711871624,-151.30393379,0.00023922,7]
[334987145,1723711871633,-500.0,0.00023922,7]
[334987146,1723711871643,-461.66998009,0.00023922,7]
[334987147,1723711871652,-500.0,0.00023922,7]
[334987148,1723711871663,-500.0,0.00023922,7]
[334987149,1723711871673,-400.80507163,0.00023922,7]
[334987150,1723711871684,-500.0,0.00023922,7]
[334987151,1723711871695,-500.0,0.00023922,7]
[334987152,1723711871705,-500.0,0.00023922,7]
[334987153,1723711871715,-500.0,0.00023922,7]
[334987154,1723711871725,-500.0,0.00023922,7]
[334987155,1723711871734,-500.0,0.00023922,7]
[334987156,1723711871744,-254.43,0.00023922,7]
[334987157,1723711871754,-500.0,0.00023922,7]
[334987158,1723711871763,-500.0,0.00023922,7]
[334987159,1723711871773,-500.0,0.00023922,7]
[334987160,1723711871783,-500.0,0.00023922,7]
[334987161,1723711871792,-480.5890014,0.00023922,7]
[334987162,1723711871803,-500.0,0.00023922,7]
[334987163,1723711871812,-500.0,0.00023922,7]
[334987164,1723711871821,-500.0,0.00023922,7]
[334987165,1723711871831,-500.0,0.00023922,7]
[334987166,1723711871842,-500.0,0.00023922,7]
[334987167,1723711871851,-500.0,0.00023922,7]
[334987168,1723711871861,-500.0,0.00023922,7]
[334987169,1723711871871,-500.0,0.00023922,7]
[334987170,1723711871881,-500.0,0.00023922,7]
[334987171,1723711871891,-500.0,0.00023922,7]
[334987172,1723711871901,-500.0,0.00023922,7]
[334987173,1723711871911,-500.0,0.00023922,7]
[334987174,1723711871920,-500.0,0.00023922,7]
[334987175,1723711871930,-500.0,0.00023922,7]
[334987176,1723711871940,-500.0,0.00023922,7]
[334987177,1723711871949,-500.0,0.00023922,7]
[334987178,1723711871959,-180.76785455,0.00023922,7]
[334987179,1723711871972,-500.0,0.00023922,7]
[334987180,1723711871982,-500.0,0.00023922,7]
[334987181,1723711871991,-500.0,0.00023922,7]
[334987182,1723711872000,-186.04530776,0.00023926,2]
[334987183,1723711872011,-2263.730572,0.0002393,2]
[334987184,1723711872020,-500.0,0.00023932,7]
[334987185,1723711872030,-500.0,0.00023932,7]
[334987186,1723711872040,-500.0,0.00023932,7]
[334987187,1723711872051,-500.0,0.00023932,7]
[334987188,1723711872061,-500.0,0.00023932,7]
[334987189,1723711872071,-500.0,0.00023932,7]
[334987190,1723711872081,-500.0,0.00023932,7]
[334987191,1723711872091,-500.0,0.00023932,7]
[334987192,1723711872101,-500.0,0.00023932,7]
[334987193,1723711872112,-500.0,0.00023932,7]
[334987194,1723711872123,-500.0,0.00023932,7]
[334987195,1723711872132,-500.0,0.00023932,7]
[334987196,1723711872142,-434.93623955,0.00023932,7]
[334987197,1723711872152,-500.0,0.00023932,7]
[334987198,1723711872162,-500.0,0.00023932,2]
[334987199,1723711872171,-500.0,0.00023932,7]
[334987200,1723711872182,-957.44,0.00023932,7]
[334987201,1723711872191,-500.0,0.00023932,7]
[334987202,1723711872202,-500.0,0.00023932,7]
[334987203,1723711872211,-500.0,0.00023932,7]
[334987204,1723711872221,-500.0,0.00023932,7]
[334987205,1723711872230,-500.0,0.00023932,7]
[334987206,1723711872241,-500.0,0.00023932,7]
[334987207,1723711872251,-335.12037108,0.00023932,7]
[334987208,1723711872261,-500.0,0.00023932,7]
[334987209,1723711872272,-164.14081487,0.00023933,2]
[334987210,1723711872281,-500.0,0.00023966,2]
[334987211,1723711872291,-500.0,0.00023969,7]
[334987212,1723711872301,-500.0,0.00023969,7]
[334987213,1723711872310,-500.0,0.00023969,7]
[334987214,1723711872320,-500.0,0.00023969,7]
[334987215,1723711872329,-881.8,0.00023969,7]
[334987216,1723711872339,-500.0,0.00023969,7]
[334987217,1723711872348,-621.28,0.00023969,7]
[334987218,1723711872357,-500.0,0.00023969,7]
[334987219,1723711872367,-617.12,0.00023969,7]
[334987220,1723711872377,-594.54,0.00023969,7]
[334987221,1723711872386,-580.79268874,0.00023969,7]
[334987222,1723711872395,-500.0,0.00023969,7]
[334987223,1723711872404,-462.08,0.00023969,7]
[334987224,1723711872414,-500.0,0.00023969,7]
[334987225,1723711872424,-500.0,0.00023969,7]
[334987226,1723711872433,-644.8,0.00023969,7]
[334987227,1723711872444,-500.0,0.00023969,7]
[334987228,1723711872455,-426.41876218,0.00023969,7]
[334987229,1723711872464,-500.0,0.00023969,7]
[334987230,1723711872474,-500.0,0.00023969,7]
[334987231,1723711872483,-500.0,0.00023969,7]
[334987232,1723711872492,-500.0,0.00023969,7]
[334987233,1723711872501,-274.9451811,0.00023969,7]
[334987234,1723711872511,-500.0,0.00023969,7]
[334987235,1723711872520,-500.0,0.00023969,7]
[334987236,1723711872530,-500.0,0.00023969,2]
[334987237,1723711872654,-500.0,0.00023969,7]
[334987238,1723711872665,-957.44,0.00023969,7]
[334987239,1723711872675,-500.0,0.00023969,7]
[334987240,1723711872684,-500.0,0.00023969,7]
[334987241,1723711872694,-500.0,0.00023969,7]
[334987242,1723711872704,-500.0,0.00023969,7]
[334987243,1723711872714,-500.0,0.00023969,7]
[334987244,1723711872723,-500.0,0.00023969,7]
[334987245,1723711872733,-500.0,0.00023969,7]
[334987246,1723711872743,-500.0,0.00023969,7]
[334987247,1723711872753,-500.0,0.00023969,7]
[334987248,1723711872763,-500.0,0.00023969,7]
[334987249,1723711872773,-500.0,0.00023969,7]
[334987250,1723711872783,-200.0,0.00023973,2]
[334987251,1723711872793,-200.0,0.00023973,2]
[334987252,1723711872802,-901.76998133,0.00023974,2]
[334987253,1723711872811,-619.04,0.00023988,7]
[334987254,1723711872821,-500.0,0.00023988,7]
[334987255,1723711872831,-500.0,0.00023988,7]
[334987256,1723711872841,-500.0,0.00023988,7]
[334987257,1723711872851,-500.0,0.00023988,7]
[334987258,1723711872860,-500.0,0.00023988,7]
[334987259,1723711872870,-500.0,0.00023988,7]
[334987260,1723711872880,-500.0,0.00023988,7]
[334987261,1723711872892,-500.0,0.00023988,7]
[334987262,1723711872901,-500.0,0.00023988,7]
[334987263,1723711872911,-500.0,0.00023988,7]
[334987264,1723711872921,-500.0,0.00023988,7]
[334987265,1723711872930,-500.0,0.00023988,7]
[334987266,1723711872940,-500.0,0.00023988,7]
[334987267,1723711872951,-500.0,0.00023988,7]
[334987268,1723711872962,-512.17,0.00023988,7]
[334987269,1723711872976,-500.0,0.00023988,7]
[334987270,1723711872986,-1249.29,0.00023988,7]
[334987271,1723711872996,-603.18,0.00023988,7]
[334987272,1723711873007,-500.0,0.00023988,7]
[334987273,1723711873016,-500.0,0.00023988,7]
[334987274,1723711873027,-500.0,0.00023988,7]
[334987275,1723711873036,-1904.96,0.00023988,7]
[334987276,1723711873048,-500.0,0.00023988,7]
[334987277,1723711873059,-500.0,0.00023988,7]
[334987278,1723711873068,-500.0,0.00023988,7]
[334987279,1723711873078,-500.0,0.00023988,7]
[334987280,1723711873088,-500.0,0.00023988,7]
[334987281,1723711873098,-500.0,0.00023988,7]
[334987282,1723711873109,-500.0,0.00023988,7]
[334987283,1723711873119,-500.0,0.00023988,7]
[334987284,1723711873130,-500.0,0.00023988,7]
[334987285,1723711873140,-1037.91,0.00023988,7]
[334987286,1723711873151,-876.52,0.00023988,7]
[334987287,1723711873160,-500.0,0.00023988,7]
[334987288,1723711873170,-500.0,0.00023988,7]
[334987289,1723711873179,-500.0,0.00023988,7]
[334987290,1723711873188,-525.26,0.00023988,7]
[334987291,1723711873199,-1853.62,0.00023988,7]
[334987292,1723711873208,-565.24,0.00023988,7]
[334987293,1723711873218,-500.0,0.00023988,7]
[334987294,1723711873229,-500.0,0.00023988,7]
[334987295,1723711873238,-500.0,0.00023988,7]
[334987296,1723711873247,-500.0,0.00023988,7]
[334987297,1723711873259,-500.0,0.00023988,7]
[334987298,1723711873270,-500.0,0.00023988,7]
[334987299,1723711873281,-500.0,0.00023988,7]
[334987300,1723711873292,-1809.24,0.00023988,7]
[334987301,1723711873302,-1019.67,0.00023988,7]
[334987302,1723711873312,-920.87,0.00023988,7]
[334987303,1723711873322,-500.0,0.00023988,7]
[334987304,1723711873334,-500.0,0.00023988,7]
[334987305,1723711873343,-500.0,0.00023988,7]
[334987306,1723711873352,-706.73,0.00023988,7]
[334987307,1723711873362,-500.0,0.00023988,7]
[334987308,1723711873373,-500.0,0.00023997,7]
[334987309,1723711873383,-3275.77,0.00023997,7]
[334987310,1723711873392,-500.0,0.00023997,7]
[334987311,1723711873402,-500.0,0.00023997,7]
[334987312,1723711873411,-500.0,0.00023997,7]
[334987313,1723711873421,-500.0,0.00023997,7]
[334987314,1723711873432,-500.0,0.00023997,7]
[334987315,1723711873442,-500.0,0.00023997,7]
[334987316,1723711873453,-500.0,0.00023997,7]
[334987317,1723711873463,-500.0,0.00023997,7]
[334987318,1723711873473,-226.7718438,0.00023997,7]
[334987319,1723711873483,-1345.06,0.00023997,7]
[334987320,1723711873492,-500.0,0.00023997,7]
[334987321,1723711873502,-500.0,0.00023997,7]
[334987322,1723711873511,-616.62,0.00023997,7]
[334987323,1723711873520,-500.0,0.00023997,7]
[334987324,1723711873530,-500.0,0.00023997,7]
[334987325,1723711873539,-500.0,0.00023997,7]
[334987326,1723711873548,-500.0,0.00023997,7]
[334987327,1723711873557,-370.35735443,0.00023997,7]
[334987328,1723711873567,-500.0,0.00023997,7]
[334987329,1723711873576,-523.0,0.00023997,7]
[334987330,1723711873586,-2954.81,0.00023997,7]
[334987331,1723711873595,-500.0,0.00023998,7]
[334987332,1723711873604,-500.0,0.00023998,7]
[334987333,1723711873614,-881.8,0.00023998,7]
[334987334,1723711873623,-621.28,0.00023998,7]
[334987335,1723711873632,-500.0,0.00023998,7]
[334987336,1723711873642,-617.12,0.00023998,7]
[334987337,1723711873651,-500.0,0.00023998,7]
[334987338,1723711873662,-500.0,0.00023998,7]
[334987339,1723711873672,-500.0,0.00023998,7]
[334987340,1723711873681,-715.45,0.00023998,7]
[334987341,1723711873691,-500.0,0.00023998,7]
[334987342,1723711873701,-500.0,0.00023998,7]
[334987343,1723711873710,-500.0,0.00023998,7]
[334987344,1723711873720,-612.48,0.00023998,7]
[334987345,1723711873729,-10330.39,0.00023998,7]
[334987346,1723711873739,-500.0,0.00023998,7]
[334987347,1723711873748,-172.28642407,0.00023998,7]
[334987348,1723711873758,-936.26,0.00023998,2]
[334987349,1723711873767,-501.12917122,0.00023998,7]
[334987350,1723711873776,-738.9,0.00023998,7]
[334987351,1723711873785,-500.0,0.00023999,7]
[334987352,1723711873795,-500.0,0.00023999,7]
[334987353,1723711873804,-500.0,0.00023999,7]
[334987354,1723711873813,-585.66,0.00023999,7]
[334987355,1723711873823,-500.0,0.00023999,7]
[334987356,1723711873832,-227.64550221,0.00023999,7]
[334987357,1723711873842,-500.0,0.00023999,7]
[334987358,1723711873851,-500.0,0.00023999,7]
[334987359,1723711873861,-500.0,0.00023999,7]
[334987360,1723711873870,-500.0,0.00023999,7]
[334987361,1723711873879,-500.0,0.00023999,7]
[334987362,1723711873889,-500.0,0.00023999,7]
[334987363,1723711873898,-500.0,0.00023999,7]
[334987364,1723711873907,-881.8,0.00023999,7]
[334987365,1723711873916,-881.8,0.00023999,7]
[334987366,1723711873926,-881.8,0.00023999,7]
[334987367,1723711873935,-881.8,0.00023999,7]
[334987368,1723711873944,-881.8,0.00023999,7]
[334987369,1723711873955,-881.8,0.00023999,7]
[334987370,1723711873966,-881.8,0.00023999,7]
[334987371,1723711873976,-205.66158145,0.00023999,7]
[334987372,1723711873986,-621.28,0.00023999,7]
[334987373,1723711873995,-621.28,0.00023999,7]
[334987374,1723711874004,-621.28,0.00023999,7]
[334987375,1723711874016,-621.28,0.00023999,7]
[334987376,1723711874026,-621.28,0.00023999,7]
[334987377,1723711874036,-621.28,0.00023999,7]
[334987378,1723711874047,-621.28,0.00023999,7]
[334987379,1723711874057,-500.0,0.00023999,7]
[334987380,1723711874066,-500.0,0.00023999,7]
[334987381,1723711874076,-500.0,0.00023999,7]
[334987382,1723711874086,-500.0,0.00023999,7]
[334987383,1723711874095,-433.69759195,0.00023999,7]
[334987384,1723711874105,-617.12,0.00023999,7]
[334987385,1723711874114,-617.12,0.00023999,7]
[334987386,1723711874123,-617.12,0.00023999,7]
[334987387,1723711874132,-617.12,0.00023999,7]
[334987388,1723711874141,-617.12,0.00023999,7]
[334987389,1723711874150,-617.12,0.00023999,7]
[334987390,1723711874159,-617.12,0.00023999,7]
[334987391,1723711874168,-500.0,0.00023999,7]
[334987392,1723711874177,-231.02388395,0.00023999,7]
[334987393,1723711874187,-619.24,0.00023999,7]
[334987394,1723711874196,-500.0,0.00023999,7]
[334987395,1723711874206,-248.03141324,0.00023999,7]
[334987396,1723711874215,-500.0,0.00023999,7]
[334987397,1723711874224,-500.0,0.00023999,7]
[334987398,1723711874233,-500.0,0.00023999,7]
[334987399,1723711874242,-504.80638126,0.00023999,7]
[334987400,1723711874252,-500.0,0.00023999,7]
[334987401,1723711874261,-500.0,0.00023999,7]
[334987402,1723711874270,-500.0,0.00023999,7]
[334987403,1723711874279,-500.0,0.00023999,7]
[334987404,1723711874288,-500.0,0.00023999,7]
[334987405,1723711874297,-500.0,0.00023999,7]
[334987406,1723711874307,-196.09250517,0.00023999,7]
[334987407,1723711874316,-500.0,0.00023999,7]
[334987408,1723711874326,-500.0,0.00023999,7]
[334987409,1723711874335,-500.0,0.00023999,7]
[334987410,1723711874344,-325.71069496,0.00023999,7]
[334987411,1723711874355,-500.0,0.00023999,7]
[334987412,1723711874366,-500.0,0.00023999,7]
[334987413,1723711874376,-371.36128823,0.00023999,7]
[334987414,1723711874387,-500.0,0.00023999,7]
[334987415,1723711874398,-490.34720129,0.00023999,7]
[334987416,1723711874408,-500.0,0.00023999,7]
[334987417,1723711874418,-500.0,0.00023999,7]
[334987418,1723711874427,-465.55240589,0.00023999,7]
[334987419,1723711874438,-500.0,0.00023999,7]
[334987420,1723711874449,-500.0,0.00023999,7]
[334987421,1723711874458,-500.0,0.00023999,7]